Cogmind - Beta 16 @@@ ROGUE MODE // 2026.02.05 @ 00:36:07 Player: Ly0ko Result: Self-destructed Performance ------------- Evolutions (2) 1000 Regions Visited (4) 800 Robots Destroyed (22) 110 Value Destroyed (713) 713 Prototype IDs (0) 0 Alien Tech Used (0) 0 Bonus (200) 200 TOTAL SCORE: 2823 Bonus ------- Pacifist 200 Cogmind --------- Core Integrity 216/550 Matter 300/300 Energy 250/250 System Corruption 0% Temperature Cool (0) Movement Treading (160) Location -8/Storage Parts ------- > --- POWER (1) -------- Ion Engine > --- PROPULSION (4) --- Light Treads Light Treads > --- UTILITY (3) ------ Heat Sink Medium Storage Unit Seismic Detector > --- WEAPON (3) ------- Light Assault Rifle Heavy Assault Rifle Heavy Assault Rifle > --- INVENTORY (10) --- Light Ion Engine Light Ion Engine Improved Ion Engine Reinforced Ion Engine Medium Storage Unit Peak State ------------ > --- POWER ------------ Ion Engine > --- PROPULSION ------- Aluminum Leg Aluminum Leg Aluminum Leg Improved Aluminum Leg > --- UTILITY ---------- Heat Sink Small Storage Unit Seismic Detector > --- WEAPON ----------- Assault Rifle Heavy Assault Rifle Improved Light Cannon > --- INVENTORY -------- Light Ion Engine Aluminum Leg Aluminum Leg Light Assault Rifle Light Assault Rifle Grenade Launcher [Rating: 14] Favorites ----------- Power Ion Engine Engine Ion Engine Propulsion Aluminum Leg Treads Light Treads Leg Aluminum Leg Utility Small Storage Unit Device Seismic Detector Storage Small Storage Unit Weapon Assault Rifle Energy Gun EM Pulse Gun Ballistic Gun Assault Rifle Ballistic Cannon Improved Light Cannon Launcher Grenade Launcher Build | -11 -10 -9 -8 -8 ------- Run | Yrd Mat Mat Mat Sto Slots Evolved 4 | . . 2 2 . Power . | . . . . . Propulsion 2 | . . 2 . . Utility 1 | . . . 1 . Weapon 1 | . . . 1 . Parts Attached 24 | 7 . 6 2 9 Power 2 | 1 . 1 . . Engine 2 | 1 . 1 . . Core . | . . . . . Reactor . | . . . . . Propulsion 8 | 2 . 3 . 3 Treads 2 | . . . . 2 Leg 6 | 2 . 3 . 1 Wheel . | . . . . . Hover . | . . . . . Flight . | . . . . . Utility 4 | 1 . 1 1 1 Device 2 | . . 1 1 . Storage 2 | 1 . . . 1 Processor . | . . . . . Hackware . | . . . . . Protection . | . . . . . Artifact . | . . . . . Weapon 10 | 3 . 1 1 5 Energy Gun 2 | 1 . . . 1 Energy Cannon . | . . . . . Ballistic Gun 6 | 2 . 1 . 3 Ballistic Cannon 1 | . . . 1 . Launcher 1 | . . . . 1 Special Weapon . | . . . . . Impact Weapon . | . . . . . Slashing Weapon . | . . . . . Piercing Weapon . | . . . . . Special Melee Weapon . | . . . . . Unidentified Prototypes . | . . . . . Parts Lost 6 | . . 2 . 4 Power 1 | . . 1 . . Propulsion 2 | . . . . 2 Utility . | . . . . . Weapon 3 | . . 1 . 2 Highest Loss Streak 1 | . . 1 . 1 To Critical Strikes . | . . . . . Average Backups 6 | 2 6 7 6 5 Power 2 | . 1 1 1 3 Propulsion 1 | 1 2 1 2 . Utility . | . . . . . Weapon 1 | . 1 3 3 . Tool/Special . | . . . . . Unused Backups 8 | . 3 . . 5 Power 5 | . 1 . . 4 Propulsion 2 | . 2 . . . Utility 1 | . . . . 1 Weapon . | . . . . . Tool/Special . | . . . . . Average Slot Usage (%) 89 | . 85 90 99 87 Engine 10 | . 14 10 9 9 Treads 1 | . . . . 3 Leg 30 | . 28 43 36 22 Device 9 | . . 2 17 18 Storage 10 | . 14 11 9 9 Energy Gun 6 | . 14 8 . 2 Ballistic Gun 15 | . 14 13 18 17 Ballistic Cannon 3 | . . . 9 5 Peak Build Rating 14 | 6 7 11 14 13 Average Rating 9 | 4 6 9 13 11 On Entrance 7 | . 6 6 11 14 Avg Prop Armor Cover (%) . | . . . . . Naked Turns . | . . . . . Heaviest Build 24 | 12 12 16 21 24 Greatest Support 43 | 20 20 43 43 43 Greatest Overweight (x) 2 | 2 . . . 1 Average Overweight (x) . | . . . . . Largest Inventory Capacity 10 | 8 8 8 8 10 Average Capacity 8 | 7 8 8 8 9 Most Carried 8 | 4 8 8 8 8 Average Carried 6 | 2 6 7 6 5 Final Capacity 10 | 8 8 8 8 10 Final Carried 8 | 4 7 8 8 5 Class Distribution -------------------- 53% | Mutant 43% | Scavenger-Gunner 3% | Scavenger-Mutant Dominant Class ---------------- Mutant | -10/Materials Mutant | -9/Materials Scavenger-Gunner | -8/Materials Scavenger-Gunner | -8/Storage Resources | -11 -10 -9 -8 -8 ----------- Run | Yrd Mat Mat Mat Sto Matter Collected 836 | 249 21 110 105 351 Remotely . | . . . . . Salvage Created 783 | . . 189 110 484 Parts 43 | . . 16 9 18 Haulers Intercepted . | . . . . . Recyclers Shooed 1 | . 1 . . . Parts Field Recycled . | . . . . . Retrieved Matter . | . . . . . Parts Self-Destructed . | . . . . . Prevented . | . . . . . Parts Restored . | . . . . . Kills | -11 -10 -9 -8 -8 ------- Run | Yrd Mat Mat Mat Sto Combat Hostiles Destroyed 20 | . . 5 5 10 Guns 14 | . . 5 4 5 Cannons 5 | . . . 1 4 AOE 1 | . . . . 1 Classes Destroyed 6 | . . 3 . 3 Watcher 2 | . . 1 . 1 Swarmer 7 | . . 3 4 . Grunt 3 | . . . . 3 Brawler 1 | . . . . 1 Sentry 8 | . . 2 1 5 Hunter 1 | . . . . 1 Best Kill Streak 5 | . . 4 5 4 Combat Bots Only 5 | . . 4 5 4 Max Kills in Single Turn 1 | . . 1 1 1 Gunslinging . | . . . . . Exploded 1 | . . . . 1 Melee . | . . . . . Uniques/NPCs Destroyed . | . . . . . Combat | -11 -10 -9 -8 -8 -------- Run | Yrd Mat Mat Mat Sto Hostile Shots Fired 172 | . 6 38 37 91 Missed 51 | . 3 9 13 26 Hits 121 | . 3 29 24 65 Melee 5 | . . . . 5 Projectile 116 | . 3 29 24 60 Critical Strikes 2 | . . 2 . . Damage Taken 1807 | . 40 352 266 1149 Core 439 | . 10 95 45 289 Absorbed by Shields . | . . . . . Core Remaining (%) 90 | 100 96 76 . . Volleys Fired 72 | . . 16 10 46 Largest 3 | . . 2 3 3 Hottest 99 | . . 60 76 99 Shots Fired 188 | . . 30 30 128 Gun 153 | . . 30 20 103 Cannon 34 | . . . 10 24 Launcher 1 | . . . . 1 Special . | . . . . . Kinetic 157 | . . 22 30 105 Thermal 22 | . . . . 22 Explosive 1 | . . . . 1 Electromagnetic 8 | . . 8 . . Robot Hit Streak 19 | . . 4 11 19 Robot Miss Streak 5 | . . 3 3 5 Penetration Max . | . . . . . Secondary Targets 1 | . . 1 . . Max Gunslinging Chain 1 | . . 1 . . Shots Hit Robots 121 | . . 17 15 89 Core Hits 41 | . . 8 7 26 Critical Kills 2 | . . . 1 1 Critical Parts Destroyed 1 | . . . . 1 Critical Strikes 6 | . . . 1 5 Burn 2 | . . . . 2 Destroy 3 | . . . 1 2 Blast 1 | . . . . 1 Melee Attacks . | . . . . . Impact . | . . . . . Slashing . | . . . . . Piercing . | . . . . . Sneak Attacks . | . . . . . Combat Hostiles . | . . . . . Follow-up Attacks . | . . . . . Damage Inflicted 1636 | . . 231 226 1179 Guns 1169 | . . 231 165 773 Cannons 358 | . . . 61 297 Explosions 100 | . . . . 100 Melee . | . . . . . Ramming 9 | . . . . 9 Kinetic 1210 | . . 176 226 808 Thermal 262 | . . . . 262 Explosive 100 | . . . . 100 Electromagnetic 55 | . . 55 . . Impact . | . . . . . Slashing . | . . . . . Piercing . | . . . . . Highest Corruption . | . . . . . Average Corruption . | . . . . . Corruption Purged . | . . . . . Corruption Blocked . | . . . . . Overload Shots . | . . . . . Overflow Damage 16 | . . . . 16 Projectiles . | . . . . . Explosions 16 | . . . . 16 Melee . | . . . . . Knockbacks 2 | . . . . 2 Impact . | . . . . . Kinetic 2 | . . . . 2 Secondary . | . . . . . Self-Inflicted Damage 38 | . . . . 38 Shots 1 | . . . . 1 Rammed 1 | . . . . 1 Targets Rammed 4 | . 1 . . 3 Kicked 3 | . 1 . . 2 Crushed . | . . . . . Highest Temperature 48 | . . 24 . 48 Average Temperature 14 | . . 12 . 14 Received Heat Transfer 483 | . 24 126 45 288 Siege Activations . | . . . . . Martial Activations . | . . . . . Shielding Activations . | . . . . . Robots Disrupted . | . . . . . Combat Hostiles . | . . . . . Robots Corrupted . | . . . . . Combat Hostiles . | . . . . . Parts Fried . | . . . . . Impact Corruptions . | . . . . . Robots Melted . | . . . . . Combat Hostiles . | . . . . . Parts Melted 1 | . . . . 1 Heat Transferred 814 | . . . . 814 Parts Sabotaged . | . . . . . Parts Stolen . | . . . . . Parts Stripped . | . . . . . Power Chain Reactions . | . . . . . Alert | -11 -10 -9 -8 -8 ------- Run | Yrd Mat Mat Mat Sto Maximum Alert Level . | . . . . . Low Security (%) 100 | 100 100 100 100 100 Level 1 . | . . . . . Level 2 . | . . . . . Level 3 . | . . . . . Level 4 . | . . . . . Level 5 . | . . . . . High Security . | . . . . . Max Security . | . . . . . Peak Influence 112 | . . 80 112 93 Initial 42 | . . . 24 42 Average 29 | . . 16 62 52 Influence Increases 580 | . . 137 152 291 Destroy 0b10 Robot/C 400 | . . 100 100 200 Destroy 0b10 Robot/NC 10 | . . 5 . 5 Destroy Leader 114 | . . 32 20 62 Disable Machine 15 | . . . . 15 Destroy Structure 11 | . . . 2 9 Partial Spotted 30 | . . . 30 . Influence Decreases 513 | . . 80 107 326 Entered New Map 93 | . . . 33 60 Time Decay 370 | . . 70 74 226 Lost Part 50 | . . 10 . 40 Squads Dispatched 6 | . 1 . 1 4 Investigation . | . . . . . Extermination . | . . . . . Reinforcement 2 | . 1 . . 1 Assault . | . . . . . Garrison 4 | . . . 1 3 Intercept . | . . . . . Searches Triggered . | . . . . . Construction Impeded . | . . . . . Haulers Reinforced . | . . . . . Active Scanning Responses . | . . . . . Cargo Convoy Interrupts . | . . . . . Stealth | -11 -10 -9 -8 -8 --------- Run | Yrd Mat Mat Mat Sto Distress Signals 4 | . 2 1 . 1 Communications Jammed . | . . . . . Distress Signals . | . . . . . Times Spotted 42 | . 8 8 7 19 Peak Tracking Total 5 | . 4 5 5 5 Tactical Retreats . | . . . . . Traps | -11 -10 -9 -8 -8 ------- Run | Yrd Mat Mat Mat Sto Traps Triggered 2 | . . . . 2 Indirectly . | . . . . . Trap Hack Attempts . | . . . . . Triggered . | . . . . . Disarmed . | . . . . . Reprogrammed . | . . . . . Reused . | . . . . . Traps Extracted . | . . . . . Installed . | . . . . . Triggered . | . . . . . Machines | -11 -10 -9 -8 -8 ---------- Run | Yrd Mat Mat Mat Sto Machines Disabled 1 | . . . . 1 Max in Single Turn 1 | . . . . 1 Machines Repaired . | . . . . . Machines Dismantled . | . . . . . Machines Sabotaged . | . . . . . Overloaded Fab Kills . | . . . . . Hacking | -11 -10 -9 -8 -8 --------- Run | Yrd Mat Mat Mat Sto Machines Accessed . | . . . . . Terminals . | . . . . . Fabricators . | . . . . . Repair Stations . | . . . . . Recycling Units . | . . . . . Scanalyzers . | . . . . . Garrison Access . | . . . . . Total Hacks . | . . . . . Successful . | . . . . . Failed . | . . . . . Catastrophic . | . . . . . Database Lockouts . | . . . . . Manual . | . . . . . Terminals . | . . . . . Fabricators . | . . . . . Repair Stations . | . . . . . Recycling Units . | . . . . . Scanalyzers . | . . . . . Garrison Access . | . . . . . Terminal Hacks . | . . . . . Fabricator Hacks . | . . . . . Repair Station Hacks . | . . . . . Recycling Unit Hacks . | . . . . . Scanalyzer . | . . . . . Garrison Access Hacks . | . . . . . Unauthorized Hacks . | . . . . . Terminals . | . . . . . Fabricators . | . . . . . Repair Stations . | . . . . . Recycling Units . | . . . . . Scanalyzers . | . . . . . Garrison Access . | . . . . . Data Cores Recovered . | . . . . . Used . | . . . . . Hacking Detections . | . . . . . Full Trace Events . | . . . . . Feedback Events . | . . . . . Feedback Blocked . | . . . . . Robot Schematics Acquired . | . . . . . Robots Built . | . . . . . Authchips . | . . . . . Time . | . . . . . Total Robot Build Rating . | . . . . . Part Schematics Acquired . | . . . . . Parts Built . | . . . . . Authchips . | . . . . . Time . | . . . . . Total Part Build Rating . | . . . . . Part Studies Acquired . | . . . . . Parts Repaired . | . . . . . Time . | . . . . . Parts Recycled . | . . . . . Recycled Matter . | . . . . . Retrieved Matter . | . . . . . Retrieved Components . | . . . . . Parts Scanalyzed . | . . . . . Part Schematics Acquired . | . . . . . Parts Damaged . | . . . . . Bothacking | -11 -10 -9 -8 -8 ------------ Run | Yrd Mat Mat Mat Sto Used RIF Installer . | . . . . . Robots Hacked . | . . . . . Non-combat . | . . . . . Combat . | . . . . . Robot Hacks Applied . | . . . . . Relay Couplers Released . | . . . . . Fabnet Peak Effective % . | . . . . . Robots Rewired . | . . . . . Allies Hacked . | . . . . . Hacks Repelled . | . . . . . Allies | -11 -10 -9 -8 -8 -------- Run | Yrd Mat Mat Mat Sto Total Allies . | . . . . . Largest Group . | . . . . . Highest-Rated Group . | . . . . . Highest-Rated Ally . | . . . . . Total Orders . | . . . . . Ally Attacks . | . . . . . Total Damage . | . . . . . Kills . | . . . . . Allies Corrupted . | . . . . . Allies Melted . | . . . . . Intel | -11 -10 -9 -8 -8 ------- Run | Yrd Mat Mat Mat Sto Active Infowar (turns) 840 | . . 108 162 570 Seismic 840 | . . 108 162 570 Robot Analysis Total . | . . . . . Derelict Logs Recovered . | . . . . . Drone Launches . | . . . . . Drone Recoveries . | . . . . . Exploration | -11 -10 -9 -8 -8 ------------- Run | Yrd Mat Mat Mat Sto Turns Passed 1560 | 80 381 367 162 570 Spaces Moved 795 | 57 130 243 90 275 Core 10 | 10 . . . . Treads 53 | . . . . 53 Legs 732 | 47 130 243 90 222 Wheels . | . . . . . Hover . | . . . . . Flight . | . . . . . Fastest Speed 50 | 50 120 120 120 120 Average Speed 125 | 116 120 120 120 136 Slowest Speed 240 | 150 120 120 120 240 Overloaded Moves . | . . . . . Propulsion Burnouts . | . . . . . Robots Hopped . | . . . . . Potential Cave-ins . | . . . . . Cave-ins Triggered . | . . . . . Exploration Rate (%) 20 | 3 30 18 6 44 Regions Visited 4 Branch Regions 1 Pre-discovered Areas . | . . . . . Known Exits Taken . | . . . . . Unknown Exits Taken 4 | 1 1 1 1 . Scrap Searched . | . . . . . Spaces Dug . | . . . . . Terrain Destroyed 7 | . . . 1 6 Melee . | . . . . . Projectile 2 | . . . 1 1 AOE 5 | . . . . 5 Terrain Rammed . | . . . . . Walls Destroyed . | . . . . . Machines Disabled . | . . . . . Actions | -11 -10 -9 -8 -8 --------- Run | Yrd Mat Mat Mat Sto Total 1210 | 67 356 287 121 379 Wait 282 | . 217 18 18 29 Move 791 | 56 129 242 89 275 Hop . | . . . . . Pick Up 21 | 4 6 5 2 4 Fast Attach 10 | 6 . 1 . 3 Attach 10 | . . 4 2 4 Detach . | . . . . . Swap 8 | 1 . 1 . 6 Drop 12 | . 3 . . 9 Fire 72 | . . 16 10 46 Melee . | . . . . . Ram . | . . . . . Kick 3 | . 1 . . 2 Crush 1 | . . . . 1 Escape Stasis . | . . . . . Rewire . | . . . . . Trap . | . . . . . Miscellaneous . | . . . . . Route ------- -11/Scrapyard -10/Materials (discovered 3 exits: [*Mat] / [*Min] / [*Sub]) -9/Materials -8/Materials -8/Storage History --------- Turn | Location | Event 29 | -11/Scrapyard | Discovered new exit (range 16) 81 | -11/Scrapyard | Entered Materials 82 | -10/Materials | Met a group of wandering Federalists 197 | -10/Materials | Discovered new exit (range 16) 214 | -10/Materials | Discovered new exit (range 9) 215 | -10/Materials | Discovered new exit (range 16) 317 | -10/Materials | Build established: Mutant 462 | -10/Materials | Entered another Materials area 462 | -9/Materials | Evolved 2 slots: Propulsion x2 817 | -9/Materials | Discovered new exit (range 9) 829 | -9/Materials | Entered another Materials area 829 | -8/Materials | Evolved 2 slots: Utility x1, Weapon x1 846 | -8/Materials | Discovered new exit (range 14) 947 | -8/Materials | Garrison activated, responded to threat 991 | -8/Materials | Entered Storage 1333 | -8/Storage | Garrison activated, responded to threat 1378 | -8/Storage | Build established: Scavenger-Gunner 1494 | -8/Storage | Core integrity fell below 50% 1561 | -8/Storage | Self-destructed Last Messages --------------- K-01 Serf collects debris. Slammed into R-06 Scavenger. Acquired 23 matter. K-01 Serf collects debris. G-47 Trooper suffers critical hit (Destroy). Destroyed Aluminum Leg. G-47 Trooper suffers critical hit (Destroy). G-47 Trooper destroyed. K-01 Serf collects debris. Lgt. Assault Rifle destroyed. Y-45 Defender destroyed. K-01 Serf collects debris. Acquired 48 matter. K-01 Serf collects debris. Acquired Lgt. Treads. Acquired Hvy. Assault Rifle. Dropped Beam Rifle. Acquired 11 matter. Acquired 19 matter. K-01 Serf cleans the Compression Vault. Map ----- +----------------------------------------------------+ | # + # #?????????????????????????????? | | # ## # + ????????????????????????????? | | # #####+##+### # ??????????????????????????? | | # ##### #?##### ?????????????????????????? | | ## ??? !#???????????????????????? | | ?# ########?????????? #???????????????????????? | | ?# #????????????????? #???????????????????????? | | ?# #?????????????????? #???????????????????????? | | ## ##?????????????????? #???????????????????????? | | # #???????????????????#???????????????????????? | | # #???????????????????????????????????????????? | | # T +???????????????????????????????????????????? | | # #???????????????????????????????????????????? | | ## ##???????????????????????????????????????????? | | # #???????????????????"????????????????????????? | | + #???????????????????"##??????????????????????? | | # #???????????????? g Y???????????????????? | | # #???????????????? """g""" ???????????????????? | | ?# #?????????????????"""l"""????????????????????? | | ?# #?????????????????""" """????????????????????? | | ## /?????????????????? ?????????????????????? | | # #?????????????????? ?????????????????????? | | # #??????????????????? ??????????????????????? | | # *#??????????????????? ??????????????????????? | | #%%#####################/##?????????????????????? | | "% / + @ #?????????????????????? | | !#==# """ """ """ ###### #?????????????????????? | | # !# """ """ """ #????# #?????????????????????? | | # # """ """ """ #????# #?????????????????????? | | # # #????# #?????????????????????? | | ## # * #????# #?????????????????????? | | ?# # #############????# #?????????????????????? | | ?# ###????????????????# #?????????????????????? | | ?# T#?????????????????# #?????????????????????? | | ?# ##?????????????????# #?????????????????????? | | ?""""?????????????????? ?????????????????????? | | ??????????????????????? ?????????????????????? | | ??????????????????????? Y ?????????????????????? | | ??????????????????????? ?????????????????????? | | ??????????????????????? #????????????????????? | | ???????????????????????#####?????????????????????? | | ?????????????????????????????????????????????????? | | ?????????????????????????????????????????????????? | | ?????????????????????????????????????????????????? | | ?????????????????????????????????????????????????? | | | | | | | | | | | +----------------------------------------------------+ Best States ------------- Heat Dissipation 41 Energy Generation 10 Energy Capacity 250 Matter Stores 300 Matter Capacity 300 Sight Range 16 Terrain Scan Density 10 Evasion (%) 55 Recoil Reduction 2 Item Schematics ----------------- None Robot Schematics ------------------ None Fabricated ------------ Nothing Repaired ---------- Nothing Studied --------- None Alien Tech Used ----------------- None Achievements -------------- None Challenges ------------ None Game ------ Seed ConcussiveChromionBallwheel Manual? 0 Play Time 00:14:05 Cumulative 4.1 hours Start 2026.02.05 @ 00:24:09 End 2026.02.05 @ 00:36:07 Sessions 1 Manual Loads 0 Difficulty Rogue Special Mode None Game No. 18 Rogue 15 Adventurer 0 Explorer 3 Win Type - Total 0 Types 0/0/0/0/0/0/0/0/0/0 Lore% 6 Gallery% 8 Achievement% 11 Wizard Run 0 Options --------- Layout 0 ASCII 0 Keyboard 0 Movement Arrows Keybinds 0 Fullscreen 1 Font 24/Smallcaps Map View 76x50 Zoom Use 0% Tactical HUD 0 Map Filters NONE Filters NONE Steam 1 RUN: deb13b2b-4faa-4286-a6b0-1e8d8f5634ee